bitfinex/quotes_BTCUSD_20250328
["timestamp","ask_amount","ask_price","bid_price","bid_amount"]
[1743135497266,3.24506157,86889.0,86888.0,92.98761136]
[1743135497474,3.24006157,86889.0,86888.0,92.98761136]
[1743135497672,3.26811138,86889.0,86888.0,92.98761136]
[1743135498974,3.12099338,86889.0,86888.0,92.98761136]
[1743135499178,1.03852591,86889.0,86888.0,92.98761136]
[1743135499783,1.17388291,86889.0,86888.0,92.98761136]
[1743135499980,1.15233104,86889.0,86888.0,92.98761136]
[1743135500238,1.14733104,86889.0,86888.0,92.98761136]
[1743135500401,1.19918404,86889.0,86888.0,92.98761136]
[1743135500811,1.20418404,86889.0,86888.0,92.98761136]
[1743135501502,1.12561904,86889.0,86888.0,92.98761136]
[1743135501655,1.01697404,86889.0,86888.0,92.98761136]
[1743135504308,1.25866004,86889.0,86888.0,92.98761136]
[1743135504530,1.37291768,86889.0,86888.0,92.98761136]
[1743135504771,2.91452351,86889.0,86888.0,92.98761136]
[1743135505068,3.34260351,86889.0,86888.0,92.98761136]
[1743135505595,3.21452351,86889.0,86888.0,92.90791136]
[1743135505811,3.34264351,86889.0,86888.0,92.86231136]
[1743135506369,3.34260351,86889.0,86888.0,92.86231136]
[1743135507533,3.36065233,86889.0,86888.0,92.86231136]
[1743135507916,3.23257233,86889.0,86888.0,92.86231136]
[1743135508176,3.24639469,86889.0,86888.0,92.86231136]
[1743135508378,3.24643469,86889.0,86888.0,92.86231136]
[1743135508904,3.11831469,86889.0,86888.0,92.86231136]
[1743135509124,3.24643469,86889.0,86888.0,92.86231136]
[1743135509809,1.80103669,86889.0,86888.0,92.86231136]
[1743135510115,3.24643469,86889.0,86888.0,92.86231136]
[1743135510245,3.26859506,86889.0,86888.0,92.86231136]
[1743135511820,3.15783169,86889.0,86888.0,92.86231136]
[1743135513023,3.17706969,86889.0,86888.0,92.86231136]
[1743135520628,1.82023469,86889.0,86888.0,92.86231136]
[1743135521018,3.26555269,86889.0,86888.0,92.86231136]
[1743135524859,3.24750387,86889.0,86888.0,92.86231136]
[1743135525278,3.23376151,86889.0,86888.0,92.86231136]
[1743135525844,3.36164151,86889.0,86888.0,92.86231136]
[1743135526347,3.11950387,86889.0,86888.0,92.86231136]
[1743135526546,3.24738387,86889.0,86888.0,92.86231136]
[1743135527607,3.26543486,86889.0,86888.0,92.86231136]
[1743135528016,3.13755486,86889.0,86888.0,92.86231136]
[1743135528313,3.26555486,86889.0,86888.0,92.86231136]
[1743135528701,3.33789295,86889.0,86888.0,92.86231136]
[1743135529363,3.24478304,86889.0,86888.0,92.86231136]
[1743135529538,3.37274304,86889.0,86888.0,92.86231136]
[1743135529938,3.33785295,86889.0,86888.0,92.85731136]
[1743135531304,3.20989295,86889.0,86888.0,92.85731136]
[1743135531497,1.89241495,86889.0,86888.0,92.85731136]
[1743135531787,3.26547486,86889.0,86888.0,92.85731136]
[1743135534765,3.24742387,86889.0,86888.0,92.85731136]
[1743135535652,3.24734387,86889.0,86888.0,92.85731136]
[1743135537420,3.282243,86889.0,86888.0,92.85731136]
[1743135539230,3.30029403,86889.0,86888.0,92.85731136]
[1743135539539,3.41455167,86889.0,86888.0,92.85731136]
[1743135541990,3.43409252,86889.0,86888.0,91.91166436]
[1743135542115,2.03299539,86889.0,86888.0,91.91166436]
[1743135542520,3.47835339,86889.0,86888.0,91.91166436]
[1743135543060,3.51328113,86889.0,86888.0,91.91166436]
[1743135543248,3.56128113,86889.0,86888.0,91.91166436]
[1743135544001,3.55628113,86889.0,86888.0,91.91166436]
[1743135544463,3.42848113,86889.0,86888.0,91.91166436]
[1743135544689,3.56128113,86889.0,86888.0,91.91166436]
[1743135544828,3.56124113,86889.0,86888.0,91.91166436]
[1743135545595,3.43348113,86889.0,86888.0,91.91166436]
[1743135545837,3.56124113,86889.0,86888.0,91.91166436]
[1743135549935,3.43348113,86889.0,86888.0,91.91166436]
[1743135550164,3.56124113,86889.0,86888.0,91.91166436]
[1743135552510,3.97894113,86889.0,86888.0,90.84788336]
[1743135552721,3.94401339,86889.0,86888.0,89.86101636]
[1743135552937,4.01353974,86889.0,86888.0,89.86101636]
[1743135553136,2.56814174,86889.0,86888.0,89.86101636]
[1743135553343,4.01353974,86889.0,86888.0,89.86101636]
[1743135553865,2.3461241,86889.0,86888.0,86.35435969]
[1743135554067,2.55921353,86889.0,86888.0,83.79580975]
[1743135554271,3.7400841,86889.0,86888.0,82.94315675]
[1743135554478,3.73011307,86889.0,86888.0,82.94315675]
[1743135554901,3.41446672,86889.0,86888.0,82.94315675]
[1743135555075,3.41454672,86889.0,86888.0,82.94315675]
[1743135555494,3.71954672,86889.0,86888.0,82.94315675]
[1743135555926,3.71454672,86889.0,86888.0,82.94315675]
[1743135556304,3.58634672,86889.0,86888.0,82.94315675]
[1743135556538,3.71450672,86889.0,86888.0,82.94315675]
[1743135557337,3.71950672,86889.0,86888.0,82.94315675]
[1743135558673,3.71946672,86889.0,86888.0,82.94315675]
[1743135558852,3.73752105,86889.0,86888.0,82.94315675]
[1743135559810,3.75557253,86889.0,86888.0,82.94315675]
[1743135562327,3.75557253,86889.0,86888.0,82.92510177]
[1743135563153,3.82933584,86889.0,86888.0,82.92510177]
[1743135563869,2.36588351,86889.0,86888.0,82.92510177]
[1743135564073,3.81128151,86889.0,86888.0,82.92510177]
[1743135564272,3.80628151,86889.0,86888.0,82.92510177]
[1743135564829,3.81128151,86889.0,86888.0,82.92510177]
[1743135567514,3.81128151,86889.0,86888.0,82.66898828]
[1743135568276,3.82933723,86889.0,86888.0,82.66898828]
[1743135568481,3.79043723,86889.0,86888.0,82.66898828]
[1743135568680,3.66231723,86889.0,86888.0,82.66898828]
[1743135568880,3.79043723,86889.0,86888.0,82.66898828]
[1743135569101,3.66231723,86889.0,86888.0,82.66898828]
[1743135569303,3.79047723,86889.0,86888.0,82.66898828]
[1743135574526,2.34507923,86889.0,86888.0,82.66898828]
[1743135574870,3.77242151,86889.0,86888.0,82.66898828]
[1743135575548,3.64426151,86889.0,86888.0,82.66898828]
[1743135575766,3.64426151,86889.0,86888.0,82.74998828]
[1743135575767,3.77242151,86889.0,86888.0,82.74998828]
[1743135577635,3.79047636,86889.0,86888.0,82.66898828]
[1743135578473,3.79047636,86889.0,86888.0,82.65093313]
[1743135578757,3.77242151,86889.0,86888.0,82.65093313]
[1743135578961,3.76742151,86889.0,86888.0,82.65093313]
[1743135579455,3.76242151,86889.0,86888.0,82.65093313]
[1743135579795,3.79047675,86889.0,86888.0,82.65093313]
[1743135580017,2.55952894,86889.0,86888.0,82.65093313]
[1743135580226,2.55452894,86889.0,86888.0,82.65093313]
[1743135580427,2.55952894,86889.0,86888.0,82.65093313]
[1743135581064,2.55452894,86889.0,86888.0,82.65093313]
[1743135582013,2.54952894,86889.0,86888.0,82.65093313]
[1743135582210,2.51507875,86889.0,86888.0,82.65093313]
[1743135582624,2.49007875,86889.0,86888.0,82.65093313]
[1743135582990,2.49507875,86889.0,86888.0,82.65093313]
[1743135584042,2.36691875,86889.0,86888.0,82.65093313]
[1743135584217,2.49523875,86889.0,86888.0,82.65093313]
[1743135584399,2.53468894,86889.0,86888.0,82.65093313]
[1743135584734,2.53468894,86889.0,86888.0,82.23323313]
[1743135587842,2.2023779,86889.0,86888.0,82.23323313]
[1743135588057,3.75796066,86889.0,86888.0,82.23323313]
[1743135588259,3.77250151,86889.0,86888.0,82.23323313]
[1743135588563,3.76750151,86889.0,86888.0,82.23323313]
[1743135588938,3.8069517,86889.0,86888.0,82.23323313]
[1743135589449,2.55726351,86889.0,86888.0,82.23323313]
[1743135589624,2.31386351,86889.0,86888.0,82.23323313]
[1743135589843,2.55226351,86889.0,86888.0,82.23323313]
[1743135590032,2.54726351,86889.0,86888.0,82.23323313]
[1743135590220,2.55226351,86889.0,86888.0,82.23323313]
[1743135590621,2.42737942,86889.0,86888.0,82.23323313]
[1743135590820,2.42737942,86889.0,86888.0,82.35613313]
[1743135590821,4.00113742,86889.0,86888.0,82.35613313]
[1743135591049,3.87277742,86889.0,86888.0,82.35613313]
[1743135591265,3.99648027,86889.0,86888.0,82.35613313]
[1743135591469,4.02071827,86889.0,86888.0,82.35613313]
[1743135591600,3.89231827,86889.0,86888.0,82.35613313]
[1743135591808,4.02071827,86889.0,86888.0,82.35613313]
[1743135593813,4.00266151,86889.0,86888.0,82.35613313]
[1743135594576,3.97737796,86889.0,86888.0,82.35613313]
[1743135594916,3.24513711,86889.0,86888.0,82.35613313]
[1743135595046,3.11921911,86889.0,86888.0,82.35613313]
[1743135595561,3.43845711,86889.0,86888.0,82.35613313]
[1743135595775,3.13845711,86889.0,86888.0,82.35613313]
[1743135596339,1.68305911,86889.0,86888.0,82.35613313]
[1743135596452,3.43845711,86889.0,86888.0,82.35613313]
[1743135596657,3.42720521,86889.0,86888.0,82.35613313]
[1743135596859,3.29888521,86889.0,86888.0,82.35613313]
[1743135597063,3.42720521,86889.0,86888.0,82.35613313]
[1743135598497,3.4260217,86889.0,86888.0,82.35613313]
[1743135599081,3.4452597,86889.0,86888.0,82.35613313]
[1743135600041,3.3169397,86889.0,86888.0,82.35613313]
[1743135600190,2.81628422,86889.0,86888.0,82.35613313]
[1743135600373,3.04681891,86889.0,86888.0,82.35613313]
[1743135601638,3.04181891,86889.0,86888.0,82.35613313]
[1743135602721,3.04681891,86889.0,86888.0,82.35613313]
[1743135602890,2.95521046,86889.0,86888.0,82.35613313]
[1743135603759,2.98980546,86889.0,86888.0,82.35613313]
[1743135608066,2.99044546,86889.0,86888.0,82.35613313]
[1743135608488,1.52699297,86889.0,86888.0,82.35613313]
[1743135609025,2.97239097,86889.0,86888.0,82.35613313]
[1743135609952,2.99162897,86889.0,86888.0,82.35613313]
[1743135610094,3.01120982,86889.0,86888.0,82.35613313]
[1743135610456,3.04602715,86889.0,86888.0,82.35613313]
[1743135611358,3.01120982,86889.0,86888.0,82.35613313]
[1743135614151,3.04731282,86889.0,86888.0,82.35613313]
[1743135614470,3.02925935,86889.0,86888.0,82.35613313]
[1743135615445,3.06407741,86889.0,86888.0,82.35613313]
[1743135615589,3.04453656,86889.0,86888.0,82.35613313]
[1743135615960,3.0097185,86889.0,86888.0,82.35613313]
[1743135616446,2.9904805,86889.0,86888.0,82.35613313]
[1743135616647,3.0097185,86889.0,86888.0,82.35613313]
[1743135617041,2.9904805,86889.0,86888.0,82.35613313]
[1743135617246,3.0097185,86889.0,86888.0,82.35613313]
[1743135617711,3.02777181,86889.0,86888.0,82.35613313]
[1743135618165,3.00853381,86889.0,86888.0,82.35613313]
[1743135618381,3.02777181,86889.0,86888.0,82.35613313]
[1743135618924,2.99044428,86889.0,86888.0,82.35613313]
[1743135619120,3.00968228,86889.0,86888.0,82.35613313]
[1743135619321,1.56428428,86889.0,86888.0,82.35613313]
[1743135619524,3.00968228,86889.0,86888.0,82.35613313]
[1743135621170,3.02529581,86889.0,86888.0,82.35613313]
[1743135621372,3.04453381,86889.0,86888.0,82.35613313]
[1743135622333,3.02529581,86889.0,86888.0,82.35613313]
[1743135622733,3.04453381,86889.0,86888.0,82.35613313]
[1743135622974,3.02529581,86889.0,86888.0,82.35613313]
[1743135623178,3.04453381,86889.0,86888.0,82.35613313]
[1743135623550,3.02529581,86889.0,86888.0,82.35613313]
[1743135623756,3.04453381,86889.0,86888.0,82.35613313]
[1743135624153,3.02529581,86889.0,86888.0,82.35613313]
[1743135624722,3.0264805,86889.0,86888.0,82.35613313]
[1743135625039,2.8975205,86889.0,86888.0,82.35613313]
[1743135625241,3.0263605,86889.0,86888.0,82.35613313]
[1743135626235,3.0071225,86889.0,86888.0,82.35613313]
[1743135626449,3.0263605,86889.0,86888.0,82.35613313]
[1743135627549,3.0263605,86889.0,86888.0,82.35713313]
[1743135628214,2.9917655,86889.0,86888.0,82.35713313]
[1743135628812,2.9725275,86889.0,86888.0,82.35713313]
[1743135629121,3.00981806,86889.0,86888.0,82.35713313]
[1743135630065,1.56442006,86889.0,86888.0,82.35713313]
[1743135630468,3.00981806,86889.0,86888.0,82.35713313]
[1743135630898,2.99058006,86889.0,86888.0,82.35713313]
[1743135631100,3.00981806,86889.0,86888.0,82.35713313]
[1743135631819,2.99058006,86889.0,86888.0,82.35713313]
[1743135633344,3.00981806,86889.0,86888.0,82.35713313]
[1743135634505,2.9917655,86889.0,86888.0,82.35713313]
[1743135637805,3.00981811,86889.0,86888.0,82.35713313]
[1743135640014,2.99058011,86889.0,86888.0,82.35713313]
[1743135640221,3.00981811,86889.0,86888.0,82.35713313]
[1743135642435,3.00981811,86889.0,86888.0,82.23423313]
[1743135644083,1.56342011,86889.0,86888.0,82.23323313]
[1743135644284,3.00881811,86889.0,86888.0,82.23323313]
[1743135644664,2.9907655,86889.0,86888.0,82.23323313]
[1743135647594,3.00881833,86889.0,86888.0,82.23323313]
[1743135650308,3.00853833,86889.0,86888.0,82.35963313]
[1743135652640,3.00853833,86889.0,86888.0,82.31143313]
[1743135654578,2.9904855,86889.0,86888.0,82.31143313]
[1743135654726,1.5450875,86889.0,86888.0,82.31143313]
[1743135655248,2.9904855,86889.0,86888.0,82.31143313]
[1743135655611,3.09391226,86889.0,86888.0,82.31143313]
[1743135656399,2.96535226,86889.0,86888.0,82.31143313]
[1743135656601,3.09379226,86889.0,86888.0,82.31143313]
[1743135659057,3.11184548,86889.0,86888.0,82.31143313]
[1743135659259,3.04239652,86889.0,86888.0,82.23323313]
[1743135659439,3.17083652,86889.0,86888.0,82.21517854]
[1743135659640,3.1527833,86889.0,86888.0,82.21517854]
[1743135660086,3.04935654,86889.0,86888.0,82.21517854]
[1743135660290,3.04435654,86889.0,86888.0,82.21517854]
[1743135660493,3.03935654,86889.0,86888.0,82.21517854]
[1743135660696,3.06741087,86889.0,86888.0,82.21517854]
[1743135661277,3.06241087,86889.0,86888.0,82.21517854]
[1743135661503,3.06741087,86889.0,86888.0,82.21517854]
[1743135662719,3.10434972,86889.0,86888.0,82.21517854]
[1743135663116,3.52204972,86889.0,86888.0,82.21517854]
[1743135663355,2.07165172,86889.0,86888.0,80.40414364]
[1743135663557,2.15485172,86889.0,86888.0,80.40414364]
[1743135663768,2.15985172,86889.0,86888.0,80.39031187]
[1743135663915,2.15985172,86889.0,86888.0,80.38126759]
[1743135664141,2.15485172,86889.0,86888.0,80.33242851]
[1743135664304,2.15485172,86889.0,86888.0,78.65526293]
[1743135664305,2.20957603,86889.0,86888.0,78.65526293]
[1743135664505,2.1965217,86889.0,86888.0,78.65526293]
[1743135664729,2.2015217,86889.0,86888.0,77.20986493]
[1743135664973,2.1915217,86889.0,86888.0,76.41737393]
[1743135665190,2.1915217,86889.0,86888.0,75.62044693]
[1743135665402,2.1965217,86889.0,86888.0,75.58247589]
[1743135666781,2.2015217,86889.0,86888.0,75.16477589]
[1743135667142,2.1968417,86889.0,86888.0,75.16477589]
[1743135667733,2.21489888,86889.0,86888.0,75.16477589]
[1743135668203,2.21989888,86889.0,86888.0,75.16477589]
[1743135668564,2.18296003,86889.0,86888.0,75.16477589]
[1743135668764,2.21989888,86889.0,86888.0,75.16477589]
[1743135670219,2.44989888,86889.0,86888.0,75.16477589]
[1743135671464,2.44989888,86889.0,86888.0,75.14671838]
[1743135671791,2.4318417,86889.0,86888.0,75.14671838]
[1743135672483,2.54490285,86889.0,86888.0,75.14671838]
[1743135672692,2.43420036,86889.0,86888.0,75.14671838]
[1743135672815,2.81396501,86889.0,86888.0,75.14671838]
[1743135673022,7.54536801,86889.0,86888.0,75.14671838]
[1743135673222,7.51051648,86889.0,86888.0,75.14671838]
[1743135673740,7.55985004,86889.0,86888.0,75.14671838]
[1743135673980,7.32985004,86889.0,86888.0,75.14671838]
[1743135674438,7.29505733,86889.0,86888.0,75.14671838]
[1743135674661,7.32984603,86889.0,86888.0,75.14671838]
[1743135674933,7.31178852,86889.0,86888.0,75.14671838]
[1743135675171,7.32381896,86889.0,86888.0,75.14671838]
[1743135676353,2.59241596,86889.0,86888.0,75.14671838]
[1743135676797,7.59241596,86889.0,86888.0,75.14671838]
[1743135678282,7.59241596,86889.0,86888.0,75.1286612]
[1743135678938,7.61047295,86889.0,86888.0,75.1286612]
[1743135680541,7.64992314,86889.0,86888.0,75.1286612]
[1743135682302,7.66797753,86889.0,86888.0,75.1286612]
[1743135682710,7.64992054,86889.0,86888.0,75.1286612]
[1743135683672,7.68453054,86889.0,86888.0,75.1286612]
[1743135684886,2.68453054,86889.0,86888.0,75.1286612]
[1743135685093,7.68453054,86889.0,86888.0,75.1286612]
[1743135688013,7.68453054,86889.0,86888.0,75.11060421]
[1743135690022,2.72146939,86889.0,86888.0,75.11060421]
[1743135690956,2.87146939,86889.0,86888.0,75.09254701]
[1743135691160,2.91036939,86889.0,86888.0,75.09254701]
[1743135691907,2.93036939,86889.0,86888.0,75.09254701]
[1743135692282,2.93036939,86889.0,86888.0,73.34161736]
[1743135692283,3.00499057,86889.0,86888.0,73.34161736]
[1743135692718,3.01804882,86889.0,86888.0,73.34161736]
[1743135693364,3.01804882,86889.0,86888.0,72.39953402]
[1743135693365,3.11804882,86889.0,86888.0,72.39953402]
[1743135693532,3.11804882,86889.0,86888.0,71.62403102]
[1743135693533,3.11304882,86889.0,86888.0,71.62403102]
[1743135693747,3.11304882,86889.0,86888.0,68.27315702]
[1743135693942,3.11304882,86889.0,86888.0,68.25509801]
[1743135694148,3.11804882,86889.0,86888.0,67.28361401]
[1743135694434,3.11804882,86889.0,86888.0,66.55597201]
[1743135694581,3.12304882,86889.0,86888.0,66.55597201]
[1743135694782,3.09499057,86889.0,86888.0,66.55597201]
[1743135695307,3.09999057,86889.0,86888.0,66.3778802]
[1743135696057,3.10499057,86889.0,86888.0,66.3778802]
[1743135698594,3.10499057,86889.0,86888.0,66.35982082]
[1743135699730,3.12304937,86889.0,86888.0,66.35982082]
[1743135701234,3.18538937,86889.0,86888.0,66.35982082]
[1743135701482,3.26514937,86889.0,86888.0,66.35982082]
[1743135701679,3.09945052,86889.0,86888.0,66.35982082]
[1743135702010,2.98490967,86889.0,86888.0,66.34176137]
[1743135702221,3.04449517,86889.0,86888.0,66.34176137]
[1743135702739,2.82903602,86889.0,86888.0,66.34176137]
[1743135702967,2.67527602,86889.0,86888.0,66.34176137]
[1743135703165,7.82899602,86889.0,86888.0,66.34176137]
[1743135703336,7.68573517,86889.0,86888.0,66.34176137]
[1743135703521,8.04445517,86889.0,86888.0,66.34176137]
[1743135703720,8.05899602,86889.0,86888.0,66.34176137]
[1743135704483,3.05899602,86889.0,86888.0,66.34176137]
[1743135704603,3.04093722,86889.0,86888.0,66.34176137]
[1743135705058,3.01593722,86889.0,86888.0,66.34176137]
[1743135705464,3.04093722,86889.0,86888.0,66.34176137]
[1743135706237,2.99669922,86889.0,86888.0,66.34176137]
[1743135706648,3.04093722,86889.0,86888.0,66.34176137]
[1743135706838,2.99669922,86889.0,86888.0,66.34176137]
[1743135707028,3.04093722,86889.0,86888.0,66.34176137]
[1743135707228,2.99669922,86889.0,86888.0,66.34176137]
[1743135707428,3.04093722,86889.0,86888.0,66.34176137]
[1743135708137,3.08038741,86889.0,86888.0,66.34176137]
[1743135708350,3.09844642,86889.0,86888.0,66.32370236]
[1743135708517,3.13538527,86889.0,86888.0,66.32370236]
[1743135710604,3.11038527,86889.0,86888.0,66.32370236]
[1743135710804,3.13538527,86889.0,86888.0,66.32370236]
[1743135711672,3.07344642,86889.0,86888.0,66.32370236]
[1743135712778,3.05538741,86889.0,86888.0,66.32370236]
[1743135713462,3.09232626,86889.0,86888.0,66.32370236]
[1743135714229,3.05538741,86889.0,86888.0,66.32370236]
[1743135714841,3.07688861,86889.0,86888.0,66.32370236]
[1743135715048,3.07688861,86889.0,86888.0,66.25158819]
[1743135716429,3.07688861,86889.0,86888.0,66.33248819]
[1743135717270,8.07688861,86889.0,86888.0,66.33248819]
[1743135717472,3.07688861,86889.0,86888.0,66.33248819]
[1743135718328,3.07688861,86889.0,86888.0,66.25158819]
[1743135719612,3.07688861,86889.0,86888.0,66.23352984]
[1743135722621,3.07688861,86889.0,86888.0,66.21547101]
[1743135722821,3.09494744,86889.0,86888.0,66.21547101]
[1743135723035,3.13188629,86889.0,86888.0,66.21547101]
[1743135723176,3.11382746,86889.0,86888.0,66.21547101]
[1743135723828,3.09494744,86889.0,86888.0,66.21547101]
[1743135724891,2.84688861,86889.0,86888.0,66.21547101]
[1743135725377,7.67871842,86889.0,86888.0,66.22435615]
[1743135725549,7.89417757,86889.0,86888.0,66.22435615]
[1743135725768,7.24467257,86889.0,86888.0,66.22435615]
[1743135725973,7.37383257,86889.0,86888.0,66.22435615]
[1743135726172,7.38837342,86889.0,86888.0,66.22435615]
[1743135726380,7.68837342,86889.0,86888.0,66.22435615]
[1743135726588,7.68337342,86889.0,86888.0,66.22435615]
[1743135726787,7.66383257,86889.0,86888.0,66.22435615]
[1743135726997,7.71179404,86889.0,86888.0,66.22435615]
[1743135727219,7.73133489,86889.0,86888.0,66.22435615]
[1743135727404,7.71679404,86889.0,86888.0,66.22435615]
[1743135727613,7.72633489,86889.0,86888.0,66.22435615]
[1743135728132,7.73133489,86889.0,86888.0,66.22435615]
[1743135728911,7.72633489,86889.0,86888.0,66.22435615]
[1743135729116,7.66687222,86889.0,86888.0,66.22435615]
[1743135729324,7.68493,86889.0,86888.0,66.22435615]
[1743135734069,2.884435,86889.0,86888.0,66.22435615]
[1743135734338,7.884435,86889.0,86888.0,66.22435615]
[1743135734740,7.86637722,86889.0,86888.0,66.22435615]
[1743135735289,7.63637722,86889.0,86888.0,66.22435615]
[1743135736044,7.70014489,86889.0,86888.0,66.22435615]
[1743135737195,7.63637722,86889.0,86888.0,66.22435615]
[1743135737536,7.65443506,86889.0,86888.0,66.22435615]
[1743135738023,7.52527506,86889.0,86888.0,66.22435615]
[1743135738206,7.65427506,86889.0,86888.0,66.22435615]
[1743135738414,7.65427506,86889.0,86888.0,66.27255615]
[1743135739171,7.69372525,86889.0,86888.0,66.27255615]
[1743135739888,7.68872525,86889.0,86888.0,66.27255615]
[1743135740023,7.69372525,86889.0,86888.0,66.27255615]
[1743135740427,7.69872525,86889.0,86888.0,66.27255615]
[1743135740620,7.69372525,86889.0,86888.0,66.27255615]
[1743135740826,7.69872525,86889.0,86888.0,66.27255615]
[1743135744134,7.84872525,86889.0,86888.0,66.27255615]
[1743135745254,7.83872525,86889.0,86888.0,66.27255615]
[1743135745450,2.9071276,86889.0,86888.0,66.27255615]
[1743135745682,7.9071276,86889.0,86888.0,66.27255615]
[1743135745883,7.9021276,86889.0,86888.0,66.27255615]
[1743135746340,7.9071276,86889.0,86888.0,66.27255615]
[1743135747022,7.7781276,86889.0,86888.0,66.27255615]
[1743135747228,7.9070876,86889.0,86888.0,66.27255615]
[1743135747429,7.86763741,86889.0,86888.0,66.27255615]
[1743135748579,7.80423506,86889.0,86888.0,66.27255615]
[1743135757192,7.84368525,86889.0,86888.0,66.27255615]
[1743135758187,7.90591032,86889.0,86888.0,66.27255615]
[1743135758518,7.90091032,86889.0,86888.0,66.27255615]
[1743135759074,7.90591032,86889.0,86888.0,66.27255615]
[1743135760972,7.77695032,86889.0,86888.0,66.27255615]
[1743135761176,7.86634013,86889.0,86888.0,66.27255615]
[1743135764364,7.90579032,86889.0,86888.0,66.27255615]
[1743135764571,7.88773248,86889.0,86888.0,66.27255615]
[1743135765108,7.88773248,86889.0,86888.0,66.22435615]
[1743135767134,8.11773248,86889.0,86888.0,66.14335615]
[1743135767700,8.1357902,86889.0,86888.0,66.14335615]
[1743135768056,8.1357902,86889.0,86888.0,66.12529815]
[1743135768057,8.17272905,86889.0,86888.0,66.12529815]
[1743135768272,3.17272905,86889.0,86888.0,66.12529815]
[1743135769038,3.16772905,86889.0,86888.0,66.12529815]
[1743135769197,3.11050398,86889.0,86888.0,66.12529815]
[1743135769518,3.10550398,86889.0,86888.0,66.12529815]
[1743135769889,3.11050398,86889.0,86888.0,66.12529815]
[1743135770311,3.10550398,86889.0,86888.0,66.12529815]
[1743135770517,3.11050398,86889.0,86888.0,66.12529815]
[1743135770679,3.10550398,86889.0,86888.0,66.12529815]
[1743135771323,3.11050398,86889.0,86888.0,66.12529815]
[1743135772039,3.07356513,86889.0,86888.0,66.12529815]
[1743135772176,3.11050398,86889.0,86888.0,66.12529815]
[1743135773679,3.09244626,86889.0,86888.0,66.1072396]
[1743135774650,3.12217057,86889.0,86888.0,66.1072396]
[1743135776690,2.99333057,86889.0,86888.0,66.1072396]
[1743135776897,3.12201057,86889.0,86888.0,66.1072396]
[1743135777322,2.89201057,86889.0,86888.0,66.1072396]
[1743135778117,2.99201057,86889.0,86888.0,66.1072396]
[1743135778416,3.23506913,86889.0,86888.0,66.1072396]
[1743135778574,3.23506913,86889.0,86888.0,64.6861066]
[1743135778918,3.24006913,86889.0,86888.0,64.6861066]
[1743135779785,3.23506913,86889.0,86888.0,64.6861066]
[1743135780133,3.24006913,86889.0,86888.0,64.6861066]
[1743135781621,3.24006913,86889.0,86888.0,64.6680472]
[1743135781825,3.22201057,86889.0,86888.0,64.6680472]
[1743135782742,3.24006991,86889.0,86888.0,64.6680472]
[1743135787250,3.11138991,86889.0,86888.0,64.6680472]
[1743135787405,7.29083522,86889.0,86888.0,64.6680472]
[1743135787612,7.29083522,86889.0,86888.0,64.7472472]
[1743135787613,6.49658837,86889.0,86888.0,64.7472472]
[1743135787846,6.46376037,86889.0,86888.0,64.7966472]
[1743135788036,6.48980922,86889.0,86888.0,64.7966472]
[1743135788454,6.51471856,86889.0,86888.0,64.7966472]
[1743135788663,6.52925941,86889.0,86888.0,64.7966472]
[1743135789557,6.82425941,86889.0,86888.0,64.7966472]
[1743135789752,6.87821342,86889.0,86888.0,64.7966472]
[1743135789973,6.88321342,86889.0,86888.0,64.7966472]
[1743135790183,6.88821342,86889.0,86888.0,64.7966472]
[1743135790448,6.67627132,86889.0,86888.0,64.7966472]
[1743135791632,7.75235932,86889.0,86888.0,64.7966472]
[1743135792298,7.62367932,86889.0,86888.0,64.7966472]
[1743135792528,7.75231932,86889.0,86888.0,64.7966472]
[1743135795611,7.98231932,86889.0,86888.0,64.7966472]
[1743135797987,7.96426142,86889.0,86888.0,64.7966472]
[1743135800915,7.98231932,86889.0,86888.0,64.7966472]
[1743135802096,7.92336531,86889.0,86888.0,64.7966472]
[1743135804665,7.86585722,86889.0,86888.0,64.7966472]
[1743135805291,7.63585722,86889.0,86888.0,64.7966472]
[1743135805640,7.26919922,86889.0,86888.0,64.7966472]
[1743135806067,7.10981322,86889.0,86888.0,64.7966472]
[1743135806238,7.22359237,86889.0,86888.0,64.7966472]
[1743135806445,7.48451637,86889.0,86888.0,64.7966472]
[1743135806600,7.49905722,86889.0,86888.0,64.7966472]
[1743135807676,7.49405722,86889.0,86888.0,64.7966472]
[1743135808177,7.49905722,86889.0,86888.0,64.7966472]
[1743135808555,7.49405722,86889.0,86888.0,64.7966472]
[1743135808763,7.49905722,86889.0,86888.0,64.7966472]
[1743135808948,7.51711479,86889.0,86888.0,64.7966472]
[1743135810121,7.55656498,86889.0,86888.0,64.7966472]
[1743135812672,2.92322298,86889.0,86888.0,64.7966472]
[1743135813128,7.92322298,86889.0,86888.0,64.7966472]
[1743135813643,7.88377279,86889.0,86888.0,64.7966472]
[1743135814577,7.86571522,86889.0,86888.0,64.7966472]
[1743135817893,7.88377276,86889.0,86888.0,64.7966472]
[1743135823812,2.88377276,86889.0,86888.0,64.7966472]
[1743135824024,7.88377276,86889.0,86888.0,64.7966472]
[1743135824156,7.92322283,86889.0,86888.0,64.7966472]
[1743135824619,7.90516529,86889.0,86888.0,64.7966472]
[1743135827190,8.23026283,86889.0,86888.0,64.6680472]
[1743135827633,3.24832085,86889.0,86888.0,64.6680472]
[1743135828474,3.15322331,86889.0,86888.0,64.6680472]
[1743135829413,3.11377324,86889.0,86888.0,64.6680472]
[1743135831728,8.11353324,86889.0,86888.0,64.7455472]
[1743135833329,7.88353324,86889.0,86888.0,64.7455472]
[1743135833520,7.49422639,86889.0,86888.0,64.7905472]
[1743135833738,7.62079637,86889.0,86888.0,64.7905472]
[1743135833935,7.63533722,86889.0,86888.0,64.7905472]
[1743135834472,2.63533722,86889.0,86888.0,64.7905472]
[1743135834800,7.63533722,86889.0,86888.0,64.7905472]
[1743135837725,7.62382922,86889.0,86888.0,64.7905472]
[1743135838226,7.64188647,86889.0,86888.0,64.7905472]
[1743135841634,7.51376647,86889.0,86888.0,64.7905472]
[1743135841843,7.64172647,86889.0,86888.0,64.7905472]
[1743135844670,7.68117654,86889.0,86888.0,64.7905472]
[1743135844985,7.67462729,86889.0,86888.0,64.7905472]
[1743135845357,2.67462729,86889.0,86888.0,64.7905472]
[1743135845565,7.67462729,86889.0,86888.0,64.7905472]
[1743135846217,7.71224305,86889.0,86888.0,64.7905472]
[1743135846785,7.7325223,86889.0,86888.0,64.7905472]
[1743135847652,7.7505795,86889.0,86888.0,64.7455472]
[1743135848057,7.7505795,86889.0,86888.0,64.72748987]
[1743135849163,7.9005795,86889.0,86888.0,64.64998987]
[1743135851634,8.1305795,86889.0,86888.0,64.64998987]
[1743135854572,8.1125223,86889.0,86888.0,64.64998987]
[1743135856132,3.1125223,86889.0,86888.0,64.64998987]
[1743135856260,8.1125223,86889.0,86888.0,64.64998987]
[1743135857011,8.05462729,86889.0,86888.0,64.64998987]
[1743135857712,8.07268491,86889.0,86888.0,64.64998987]
[1743135858824,8.13057992,86889.0,86888.0,64.64998987]
[1743135861780,8.07128992,86889.0,86888.0,64.64998987]
[1743135861939,7.34285085,86889.0,86888.0,64.73218987]
[1743135862148,7.21497085,86889.0,86888.0,64.73218987]
[1743135862333,7.34289085,86889.0,86888.0,64.73218987]
[1743135862531,7.38234092,86889.0,86888.0,64.73218987]
[1743135864636,7.3642833,86889.0,86888.0,64.73218987]